{"text_format":"1","workbook":"xlsx","n_sheets":3,"sheets":["Лист1","Лист2","Лист3"],"not_rendered":{"charts":0,"images":0,"macros":1,"external_links":1,"defined_names":2,"comments":0,"pivot_tables":0},"unopened":[],"bounds":{"document_bytes":16777216,"sheet_cells":100000,"rows_first":2000,"rows_last":500,"rows_between":2000,"halvings":0,"cell_chars":16384,"cell_head_chars":4096},"cells_cut":0,"cells_raw":0,"read":"whole","date_system":"1900"}

{"sheet":"Лист1","index":0,"n_rows":185,"n_cols":15,"rows_kept":185,"cut":false,"hidden":false,"merged":[[173,0,174,4],[184,0,184,4],[173,5,174,9],[136,10,137,14],[142,10,142,14],[149,10,149,14],[155,0,156,4],[122,10,122,14],[136,0,137,4],[136,5,137,9],[150,5,150,9],[124,5,124,9],[130,5,130,9],[123,0,123,4],[0,0,1,4],[6,0,6,4],[14,0,14,4],[106,0,107,4],[76,10,77,14],[82,10,82,14],[92,10,92,14],[78,7,79,7],[78,8,79,8],[76,5,77,9],[82,5,82,9],[91,5,91,9],[38,10,39,14],[44,10,44,14],[52,10,52,14],[106,5,107,9],[112,5,112,9],[38,5,39,9],[42,5,42,9],[62,5,62,9],[44,5,44,9],[51,5,51,9],[100,5,100,9],[108,11,109,11],[108,12,109,12],[106,10,107,14],[112,10,112,14],[120,5,120,9],[75,0,75,4],[38,0,39,4],[42,0,42,4],[44,0,44,4],[63,0,63,4],[76,0,77,4],[82,0,82,4],[99,0,99,4],[90,0,90,4],[37,10,37,14],[18,5,18,9],[0,10,1,14],[4,10,4,14],[6,10,6,14],[25,10,25,14],[0,5,1,9],[4,5,4,9],[6,5,6,9],[28,5,28,9]]}
["8ой путь (весовая)",null,null,null,null,"2я выстовочная",null,null,null,null,"3я выстовочная"]
[]
["всего","до весов 5","за дор-ой 10",null,null,"всего","15","до дорожки 9","за дорожкой 6",null,"всего","22","до дорожки 15","за дорожкой 7 "]
["факт",{"$f":"COUNTA(B8:B14)","v":0},{"$f":"COUNTA(B16:B27)","v":0},null,null,"факт",{"$f":"COUNTA(G8:G18,G20:G27)","v":0},{"$f":"COUNTA(G8:G18)","v":0},{"$f":"COUNTA(G20:G27)","v":0},null,"факт",{"$f":"COUNTA(L8:L25,L27:L36)","v":0},{"$f":"COUNTA(L8:L25)","v":0},{"$f":"COUNTA(L27:L36)","v":0}]
[null,null,null,null,null,"расстановка единиц от выездных ворот",null,null,null,null,"расстановка единиц от выездных ворот"]
["№ МПС  ↓","ГРУЗ  ↓","1ое ВЗВ-Е","2ое ВЗВ-Е","ОПЕРАЦИЯ","№ МПС  ↓","ГРУЗ  ↓","1ое ВЗВ-Е","2ое ВЗВ-Е","ОПЕРАЦИЯ","№ МПС  ↓","ГРУЗ  ↓","1ое ВЗВ-Е","2ое ВЗВ-Е","ОПЕРАЦИЯ"]
["до весов",null,null,null,null,"до дорожки",null,null,null,null,"до дорожки"]
[]
[]
[]
[]
[]
[]
[]
["за дорожкой"]
[]
[]
[]
[null,null,null,null,null,"за дорожкой"]
[]
[]
[]
[]
[]
[]
[null,null,null,null,null,null,null,null,null,null,"за дорожкой"]
[]
[null,null,null,null,null,"№ МПС  ↑","ГРУЗ  ↑","1ое ВЗВ-Е","2ое ВЗВ-Е","ОПЕРАЦИЯ"]
[null,null,null,null,null,"со стороны депо"]
[]
[]
[]
[]
[]
[]
[null,null,null,null,null,null,null,null,null,null,"нет"]
[null,null,null,null,null,null,null,null,null,null,"№ МПС  ↑","ГРУЗ  ↑","1ое ВЗВ-Е","2ое ВЗВ-Е","ОПЕРАЦИЯ"]
[null,null,null,null,null,null,null,null,null,null,"со стороны депо"]
["4я выстовочная",null,null,null,null,"Старая весовая",null,null,null,null,"Котельная"]
[]
["всего","23","до дорожки 15","за дорожкой 8",null,"всего","12","до дорожки 4","за дорожкой 7",null,"всего","до дор-ки 5","за дор-ой 6"]
["факт",{"$f":"COUNTA(B46:B63,B65:B74)","v":0},{"$f":"COUNTA(B46:B63)","v":0},{"$f":"COUNTA(B65:B74)","v":0},null,"факт",{"$f":"COUNTA(G46:G51,G53:G61)","v":0},{"$f":"COUNTA(G46:G51)","v":0},{"$f":"COUNTA(G53:G61)","v":0},null,"факт",{"$f":"COUNTA(L46:L52)","v":0},{"$f":"COUNTA(L54:L61)","v":0}]
["расстановка единиц от выездных ворот",null,null,null,null,"расстановка единиц от выездных ворот"]
["№ МПС  ↓","ГРУЗ  ↓","1ое ВЗВ-Е","2ое ВЗВ-Е","ОПЕРАЦИЯ","№ МПС  ↓","ГРУЗ  ↓","1ое ВЗВ-Е","2ое ВЗВ-Е","ОПЕРАЦИЯ","№ МПС  ↓","ГРУЗ  ↓","1ое ВЗВ-Е","2ое ВЗВ-Е","ОПЕРАЦИЯ"]
["до дорожки",null,null,null,null,"до дорожки",null,null,null,null,"до дорожки"]
[]
[]
[]
[]
[]
[]
[null,null,null,null,null,"за дорожкой"]
[null,null,null,null,null,null,null,null,null,null,"за дорожкой"]
[]
[]
[]
[]
[]
[]
[]
[]
[null,null,null,null,null,"№ МПС  ↑","ГРУЗ  ↑","1ое ВЗВ-Е","2ое ВЗВ-Е","ОПЕРАЦИЯ"]
[null,null,null,null,null,"со стороны депо"]
["за дорожкой"]
[]
[]
[]
[]
[]
[]
[]
[]
[]
[]
["№ МПС  ↑","ГРУЗ  ↑","1ое ВЗВ-Е","2ое ВЗВ-Е","ОПЕРАЦИЯ"]
["со стороны депо"]
["Канава известника",null,null,null,null,"Объезд канавы известника",null,null,null,null,"Старый нефтеслив"]
[]
["всего","в зоне крана 6","до переезда 5","за канавой 3",null,"всего","до перезда 6 ","от заправки до переезда 6 запад","за канавой за переездом 3",null,"всего","до переезда 7","за переездом 10"]
["факт",{"$f":"COUNTA(B92:B99)","v":0},{"$f":"COUNTA(B84:B90)","v":0},{"$f":"COUNTA(B101:B105)","v":0},null,null,null,null,null,null,"факт",{"$f":"COUNTA(L84:L92)","v":0},{"$f":"COUNTA(L94:L106)","v":0}]
[null,null,null,null,null,"факт",{"$f":"COUNTA(G84:G91)","v":0},{"$f":"COUNTA(G93:G100)","v":0},{"$f":"COUNTA(G102:G106)","v":0}]
["№ МПС  ↓","ГРУЗ  ↓","1ое ВЗВ-Е","2ое ВЗВ-Е","ОПЕРАЦИЯ","№ МПС  ↓","ГРУЗ  ↓","1ое ВЗВ-Е","2ое ВЗВ-Е","ОПЕРАЦИЯ","№ МПС  ↓","ГРУЗ  ↓","1ое ВЗВ-Е","2ое ВЗВ-Е","ОПЕРАЦИЯ"]
["до переезда",null,null,null,null,"до переезда",null,null,null,null,"до переезда"]
[]
[]
[]
[]
[]
[]
[]
[" канава (в зоне крана)"]
[null,null,null,null,null,"от заправки до переезда (в западную сторону)"]
[null,null,null,null,null,null,null,null,null,null,"за переездом"]
[]
[]
[]
[]
[]
[]
["за канавой (за переездом)"]
[null,null,null,null,null,"за переездом западная сторона"]
[]
[]
[]
[]
[]
["Буры ",null,null,null,null,"Сушка песка",null,null,null,null,"9ый путь"]
[]
["всего","9","по бурам 6",null,null,"всего","5","3","3",null,"всего","от прохода пандуса до переезда 7","по ЛЦ -2 за проходом сушки песка до переезда 10"]
["факт",{"$f":"COUNTA(B113:B123)","v":0},{"$f":"COUNTA(B125:B132)","v":0},null,null,"факт",{"$f":"COUNTA(G114:G120)","v":0},{"$f":"COUNTA(G122:G124)","v":0},{"$f":"COUNTA(G126:G130)","v":0}]
[null,null,null,null,null,"всего ","3","факт",{"$f":"COUNTA(G132:G136)","v":0},null,"факт",{"$f":"COUNTA(L114:L122)","v":0},{"$f":"COUNTA(L124:L135)","v":0}]
["№ МПС  ↓","ГРУЗ  ↓","1ое ВЗВ-Е","2ое ВЗВ-Е","ОПЕРАЦИЯ","№ МПС  ↓","ГРУЗ  ↓","1ое ВЗВ-Е","2ое ВЗВ-Е","ОПЕРАЦИЯ","№ МПС  ↓","ГРУЗ  ↓","1ое ВЗВ-Е","2ое ВЗВ-Е","ОПЕРАЦИЯ"]
[null,null,null,null,null,"правая сушки песка (5)",null,null,null,null,"от прохода пандуса до переезда"]
[]
[]
[]
[]
[]
[]
[]
[null,null,null,null,null,"левая сушки песка (3)"]
[]
[null,null,null,null,null,null,null,null,null,null,"по ЛЦ -2 за проходом сушки песка до переезда "]
["по бурам "]
[null,null,null,null,null,"по левой от переезда до ворот (3)"]
[]
[]
[]
[]
[]
[null,null,null,null,null,"по правой от переезда до ворот (3)"]
[]
[]
[]
[]
[]
["Склад сбыта",null,null,null,null,"Склад металлов",null,null,null,null,"6ой путь (копровая)"]
[]
["всего","8",null,null,null,"всего","6","по складу 10",null,null,"всего","до тропинки 4","от тропинки 22"]
["факт",{"$f":"COUNTA(B143:B152)","v":0},null,null,null,"факт",{"$f":"COUNTA(G143:G150)","v":0},{"$f":"COUNTA(G152:G163)","v":0},null,null,"факт",{"$f":"COUNTA(L144:L149)","v":0},{"$f":"COUNTA(L151:L173)","v":0}]
[]
["№ МПС  ↓","ГРУЗ  ↓","1ое ВЗВ-Е","2ое ВЗВ-Е","ОПЕРАЦИЯ","№ МПС  ↓","ГРУЗ  ↓","1ое ВЗВ-Е","2ое ВЗВ-Е","ОПЕРАЦИЯ","№ МПС  ↓","ГРУЗ  ↓","1ое ВЗВ-Е","2ое ВЗВ-Е","ОПЕРАЦИЯ"]
[null,null,null,null,null,null,null,null,null,null,"от прохода до тропинки"]
[]
[]
[]
[]
[]
[]
[null,null,null,null,null,null,null,null,null,null,"от тропинки"]
[null,null,null,null,null,"по складу от прохода до переезда"]
[]
[]
[]
[]
["ЛЦ - 1 (Шихтовой)"]
[]
["всего","10","9 в зоне крана"]
["факт",{"$f":"COUNTA(B162:B173)","v":0}]
[]
["№ МПС  ↓","ГРУЗ  ↓","1ое ВЗВ-Е","2ое ВЗВ-Е","ОПЕРАЦИЯ"]
[]
[]
[]
[]
[]
[]
[]
[]
[]
[]
[]
[]
["Склад огнеупоров",null,null,null,null,"по мусорной (за проходом склада огнеупроров)"]
[]
["всего","3","по складу 1",null,null,"всего"]
["факт",{"$f":"COUNTA(B180:B184)","v":0},{"$f":"COUNTA(B186:B187)","v":0},null,null,"факт",{"$f":"COUNTA(G180:G193)","v":0}]
[]
["№ МПС  ↓","ГРУЗ  ↓","1ое ВЗВ-Е","2ое ВЗВ-Е","ОПЕРАЦИЯ","№ МПС  ↓","ГРУЗ  ↓","1ое ВЗВ-Е","2ое ВЗВ-Е","ОПЕРАЦИЯ"]
[]
[]
[]
[]
[]
["по складу "]

{"sheet":"Лист2","index":1,"n_rows":7,"n_cols":9,"rows_kept":7,"cut":false,"hidden":false,"merged":[[0,7,0,8]]}
[null,null,null,null,null,null,null,"ФОРМА ВВОДА "]
[]
[]
[null,null,null,null,null,null,null,"№ МПС"]
[]
[]
[null,null,null,null,null,null,null,null,"\"кнопка добавить в таблицу\""]

{"sheet":"Лист3","index":2,"n_rows":1,"n_cols":1,"rows_kept":1,"cut":false,"hidden":false,"merged":[]}
["№мпс"]